fUSD/lending_fUSD_20250108
["ID","MTS","AMOUNT","RATE_DAILY","PERIOD"]
[348124450,1736340643224,-192.8,9.999e-05,2]
[348124452,1736340643234,-339.02147947,9.999e-05,2]
[348124454,1736340643244,-500.0,9.999e-05,2]
[348124456,1736340643254,-500.0,9.999e-05,2]
[348124458,1736340643264,-500.0,9.999e-05,2]
[348124460,1736340643273,-569.09,9.999e-05,2]
[348124461,1736340643283,-500.0,9.999e-05,2]
[348124462,1736340643292,-604.38401391,9.999e-05,2]
[348124464,1736340643302,-500.0,9.999e-05,2]
[348124467,1736340643312,-478.11,9.999e-05,2]
[348124469,1736340643321,-500.0,9.999e-05,2]
[348124471,1736340643331,-500.0,9.999e-05,2]
[348124473,1736340643340,-500.0,9.999e-05,2]
[348124474,1736340643349,-596.95,9.999e-05,2]
[348124476,1736340643361,-500.0,9.999e-05,2]
[348124478,1736340643370,-500.0,9.999e-05,2]
[348124480,1736340643379,-500.0,9.999e-05,2]
[348124482,1736340643389,-500.0,9.999e-05,2]
[348124484,1736340643398,-393.67656125,9.999e-05,2]
[348124486,1736340643407,-500.0,9.999e-05,2]
[348124488,1736340643416,-299.17846338,9.999e-05,2]
[348124490,1736340643425,-500.0,9.999e-05,2]
[348124492,1736340643435,-500.0,9.999e-05,2]
[348124494,1736340643444,-500.0,9.999e-05,2]
[348124496,1736340643454,-500.0,9.999e-05,2]
[348124499,1736340643463,-500.0,9.999e-05,2]
[348124501,1736340643473,-500.0,9.999e-05,2]
[348124504,1736340643483,-500.0,9.999e-05,2]
[348124507,1736340643492,-500.0,9.999e-05,2]
[348124509,1736340643501,-500.0,9.999e-05,2]
[348124510,1736340643511,-1865.66,9.999e-05,2]
[348124513,1736340643521,-500.0,9.999e-05,2]
[348124515,1736340643530,-500.0,9.999e-05,2]
[348124517,1736340643540,-500.0,9.999e-05,2]
[348124518,1736340643549,-500.0,9.999e-05,2]
[348124521,1736340643559,-500.0,9.999e-05,2]
[348124522,1736340643568,-500.0,9.999e-05,2]
[348124524,1736340643577,-500.0,9.999e-05,2]
[348124526,1736340643586,-500.0,9.999e-05,2]
[348124528,1736340643595,-500.0,9.999e-05,2]
[348124530,1736340643609,-500.0,9.999e-05,2]
[348124532,1736340643619,-500.0,9.999e-05,2]
[348124534,1736340643628,-500.0,9.999e-05,2]
[348124536,1736340643638,-500.0,9.999e-05,2]
[348124538,1736340643647,-500.0,9.999e-05,2]
[348124541,1736340643656,-500.0,9.999e-05,7]
[348124543,1736340643666,-500.0,9.999e-05,2]
[348124545,1736340643675,-500.0,9.999e-05,2]
[348124546,1736340643684,-500.0,9.999e-05,2]
[348124549,1736340643693,-1245.89,9.999e-05,2]
[348124550,1736340643702,-500.0,9.999e-05,2]
[348124552,1736340643711,-500.0,9.999e-05,2]
[348124555,1736340643721,-500.0,9.999e-05,2]
[348124557,1736340643730,-500.0,9.999e-05,2]
[348124558,1736340643739,-500.0,9.999e-05,2]
[348124560,1736340643748,-500.0,9.999e-05,2]
[348124562,1736340643757,-500.0,9.999e-05,2]
[348124564,1736340643767,-500.0,9.999e-05,2]
[348124566,1736340643776,-500.0,9.999e-05,2]
[348124569,1736340643785,-500.0,9.999e-05,2]
[348124570,1736340643795,-500.0,9.999e-05,2]
[348124571,1736340643804,-500.0,9.999e-05,2]
[348124572,1736340643814,-914.56,9.999e-05,2]
[348124573,1736340643823,-500.0,9.999e-05,2]
[348124574,1736340643832,-500.0,9.999e-05,2]
[348124575,1736340643841,-500.0,9.999e-05,2]
[348124576,1736340643851,-500.0,9.999e-05,2]
[348124577,1736340643861,-500.0,9.999e-05,2]
[348124579,1736340643870,-500.0,9.999e-05,2]
[348124580,1736340643880,-500.0,9.999e-05,2]
[348124581,1736340643889,-607.67,9.999e-05,2]
[348124582,1736340643899,-500.0,9.999e-05,2]
[348124583,1736340643909,-500.0,9.999e-05,2]
[348124584,1736340643918,-500.0,9.999e-05,2]
[348124585,1736340643928,-500.0,9.999e-05,2]
[348124586,1736340643938,-500.0,9.999e-05,2]
[348124587,1736340643947,-500.0,9.999e-05,2]
[348124589,1736340643956,-1884.882851,9.999e-05,2]
[348124591,1736340643965,-500.0,9.999e-05,2]
[348124593,1736340643975,-500.0,9.999e-05,2]
[348124594,1736340643984,-500.0,9.999e-05,2]
[348124595,1736340643992,-500.0,9.999e-05,2]
[348124596,1736340644002,-500.0,9.999e-05,2]
[348124598,1736340644011,-500.0,9.999e-05,2]
[348124599,1736340644020,-545.15053811,9.999e-05,2]
[348124600,1736340644029,-500.0,9.999e-05,2]
[348124601,1736340644038,-500.0,9.999e-05,2]
[348124602,1736340644048,-500.0,9.999e-05,2]
[348124603,1736340644057,-500.0,9.999e-05,2]
[348124604,1736340644068,-500.0,9.999e-05,2]
[348124605,1736340644078,-500.0,9.999e-05,2]
[348124606,1736340644089,-500.0,9.999e-05,2]
[348124607,1736340644100,-500.0,9.999e-05,2]
[348124608,1736340644111,-500.0,9.999e-05,2]
[348124609,1736340644120,-500.0,9.999e-05,2]
[348124610,1736340644130,-500.0,9.999e-05,2]
[348124611,1736340644139,-500.0,9.999e-05,2]
[348124612,1736340644149,-2302.348372,9.999e-05,2]
[348124613,1736340644159,-500.0,9.999e-05,2]
[348124614,1736340644169,-557.87,9.999e-05,2]
[348124615,1736340644178,-500.0,9.999e-05,2]
[348124616,1736340644187,-500.0,9.999e-05,2]
[348124617,1736340644197,-500.0,9.999e-05,2]
[348124618,1736340644206,-500.0,9.999e-05,2]
[348124619,1736340644215,-741.65,9.999e-05,2]
[348124620,1736340644224,-500.0,9.999e-05,2]
[348124621,1736340644233,-500.0,9.999e-05,2]
[348124622,1736340644243,-500.0,9.999e-05,2]
[348124623,1736340644253,-500.0,9.999e-05,2]
[348124624,1736340644454,-500.0,9.999e-05,2]
[348124625,1736340644464,-500.0,9.999e-05,2]
[348124626,1736340644474,-500.0,9.999e-05,2]
[348124627,1736340644483,-500.0,9.999e-05,2]
[348124628,1736340644493,-500.0,9.999e-05,2]
[348124629,1736340644503,-500.0,9.999e-05,2]
[348124630,1736340644512,-500.0,9.999e-05,2]
[348124631,1736340644525,-500.0,9.999e-05,2]
[348124632,1736340644535,-500.0,9.999e-05,2]
[348124633,1736340644544,-511.1,9.999e-05,2]
[348124634,1736340644553,-272.14529553,9.999e-05,2]
[348124635,1736340644563,-164.84262995,9.999e-05,2]
[348124636,1736340644573,-500.0,9.999e-05,2]
[348124637,1736340644582,-500.0,9.999e-05,2]
[348124638,1736340644592,-541.98,9.999e-05,2]
[348124639,1736340644607,-500.0,9.999e-05,2]
[348124640,1736340644616,-500.0,9.999e-05,2]
[348124641,1736340644625,-500.0,9.999e-05,2]
[348124642,1736340644634,-500.0,9.999e-05,2]
[348124643,1736340644644,-500.0,9.999e-05,2]
[348124644,1736340644654,-500.0,9.999e-05,2]
[348124645,1736340644663,-500.0,9.999e-05,2]
[348124646,1736340644672,-500.0,9.999e-05,2]
[348124647,1736340644682,-500.0,9.999e-05,2]
[348124648,1736340644692,-500.0,9.999e-05,2]
[348124649,1736340644702,-500.0,9.999e-05,2]
[348124650,1736340644711,-500.0,9.999e-05,2]
[348124651,1736340644720,-572.0,9.999e-05,2]
[348124652,1736340644730,-500.0,9.999e-05,2]
[348124653,1736340644739,-500.0,9.999e-05,2]
[348124654,1736340644749,-500.0,9.999e-05,2]
[348124655,1736340644758,-500.0,9.999e-05,2]
[348124656,1736340644767,-500.0,9.999e-05,2]
[348124657,1736340644776,-500.0,9.999e-05,2]
[348124658,1736340644786,-500.0,9.999e-05,2]
[348124659,1736340644796,-500.0,9.999e-05,2]
[348124660,1736340644805,-500.0,9.999e-05,2]
[348124661,1736340644814,-500.0,9.999e-05,2]
[348124662,1736340644823,-500.0,9.999e-05,2]
[348124663,1736340644833,-500.0,9.999e-05,2]
[348124664,1736340644842,-500.0,9.999e-05,2]
[348124665,1736340644851,-500.0,9.999e-05,2]
[348124666,1736340644863,-500.0,9.999e-05,2]
[348124667,1736340644872,-500.0,9.999e-05,2]
[348124668,1736340644881,-2857.94,9.999e-05,2]
[348124669,1736340644890,-500.0,9.999e-05,2]
[348124670,1736340644900,-500.0,9.999e-05,2]
[348124671,1736340644909,-500.0,9.999e-05,2]
[348124672,1736340644919,-500.0,9.999e-05,2]
[348124673,1736340644928,-523.14,9.999e-05,2]
[348124674,1736340644937,-547.0,9.999e-05,2]
[348124675,1736340644946,-500.0,9.999e-05,2]
[348124676,1736340644956,-500.0,9.999e-05,2]
[348124677,1736340644965,-500.0,9.999e-05,2]
[348124678,1736340644974,-500.0,9.999e-05,2]
[348124679,1736340644983,-500.0,9.999e-05,2]
[348124680,1736340644993,-500.0,9.999e-05,2]
[348124681,1736340645002,-500.0,9.999e-05,2]
[348124682,1736340645011,-500.0,9.999e-05,2]
[348124683,1736340645020,-500.0,9.999e-05,2]
[348124684,1736340645030,-500.0,9.999e-05,2]
[348124685,1736340645039,-500.0,9.999e-05,2]
[348124686,1736340645049,-500.0,9.999e-05,2]
[348124687,1736340645059,-500.0,9.999e-05,2]
[348124688,1736340645068,-504.28656184,9.999e-05,2]
[348124689,1736340645078,-500.0,9.999e-05,2]
[348124690,1736340645087,-500.0,9.999e-05,2]
[348124691,1736340645097,-500.0,9.999e-05,2]
[348124692,1736340645108,-500.0,9.999e-05,2]
[348124693,1736340645117,-500.0,9.999e-05,2]
[348124694,1736340645127,-500.0,9.999e-05,2]
[348124695,1736340645136,-335.15673387,9.999e-05,2]
[348124696,1736340645146,-500.0,9.999e-05,2]
[348124697,1736340645155,-500.0,9.999e-05,2]
[348124698,1736340645166,-500.0,9.999e-05,2]
[348124699,1736340645175,-500.0,9.999e-05,2]
[348124700,1736340645184,-500.0,9.999e-05,2]
[348124701,1736340645193,-500.0,9.999e-05,2]
[348124702,1736340645203,-500.0,9.999e-05,2]
[348124703,1736340645212,-502.41853839,9.999e-05,2]
[348124704,1736340645221,-500.0,9.999e-05,2]
[348124705,1736340645230,-500.0,9.999e-05,2]
[348124706,1736340645240,-501.69696957,9.999e-05,2]
[348124707,1736340645250,-500.0,9.999e-05,2]
[348124708,1736340645260,-526.55029444,9.999e-05,2]
[348124709,1736340645269,-500.0,9.999e-05,2]
[348124710,1736340645278,-500.0,9.999e-05,2]
[348124711,1736340645287,-500.0,9.999e-05,2]
[348124712,1736340645297,-871.44,9.999e-05,2]
[348124713,1736340645306,-500.0,9.999e-05,2]
[348124714,1736340645315,-500.0,9.999e-05,2]
[348124715,1736340645324,-500.0,9.999e-05,2]
[348124716,1736340645334,-500.0,9.999e-05,2]
[348124717,1736340645344,-500.0,9.999e-05,2]
[348124718,1736340645354,-500.0,9.999e-05,2]
[348124719,1736340645367,-500.0,9.999e-05,2]
[348124720,1736340645377,-500.0,9.999e-05,2]
[348124721,1736340645387,-500.0,9.999e-05,2]
[348124722,1736340645398,-500.0,9.999e-05,2]
[348124723,1736340645407,-500.0,9.999e-05,2]
[348124724,1736340645417,-500.0,9.999e-05,2]
[348124725,1736340645427,-500.0,9.999e-05,2]
[348124726,1736340645437,-500.0,9.999e-05,2]
[348124727,1736340645447,-503.05132885,9.999e-05,2]
[348124728,1736340645456,-500.0,9.999e-05,2]
[348124729,1736340645465,-500.0,9.999e-05,2]
[348124730,1736340645475,-500.0,9.999e-05,2]
[348124731,1736340645484,-500.0,9.999e-05,2]
[348124732,1736340645494,-500.0,9.999e-05,2]
[348124733,1736340645504,-704.54,9.999e-05,2]
[348124734,1736340645513,-500.0,9.999e-05,2]
[348124735,1736340645523,-500.0,9.999e-05,2]
[348124736,1736340645532,-500.0,9.999e-05,2]
[348124737,1736340645545,-501.71483198,9.999e-05,2]
[348124738,1736340645554,-501.61765121,9.999e-05,2]
[348124739,1736340645563,-500.0,9.999e-05,2]
[348124740,1736340645573,-589.05,9.999e-05,2]
[348124741,1736340645582,-1120.13,9.999e-05,2]
[348124742,1736340645591,-665.35,9.999e-05,2]
[348124743,1736340645603,-503.42233685,9.999e-05,2]
[348124744,1736340645618,-570.04644014,9.999e-05,2]
[348124745,1736340645628,-500.0,9.999e-05,2]
[348124746,1736340645637,-500.0,9.999e-05,2]
[348124747,1736340645647,-6718.53449797,9.999e-05,4]
[348124748,1736340645657,-628.43,9.999e-05,2]
[348124749,1736340645666,-1819.42,9.999e-05,2]
[348124750,1736340645676,-500.0,9.999e-05,2]
[348124751,1736340645686,-593.2,9.999e-05,2]
[348124752,1736340645695,-2405.51,9.999e-05,2]
[348124754,1736340645705,-500.0,9.999e-05,2]
[348124756,1736340645715,-951.54,9.999e-05,2]
[348124757,1736340645724,-500.0,9.999e-05,2]
[348124758,1736340645734,-500.0,9.999e-05,2]
[348124759,1736340645743,-500.0,9.999e-05,2]
[348124760,1736340645752,-500.0,9.999e-05,2]
[348124761,1736340645761,-500.0,9.999e-05,2]
[348124762,1736340645771,-500.0,9.999e-05,2]
[348124763,1736340645780,-500.0,9.999e-05,2]
[348124764,1736340645789,-500.0,9.999e-05,2]
[348124765,1736340645798,-500.0,9.999e-05,2]
[348124766,1736340645808,-500.0,9.999e-05,2]
[348124767,1736340645817,-500.0,9.999e-05,2]
[348124768,1736340645827,-158.04,9.999e-05,2]
[348124770,1736340645837,-500.0,9.999e-05,2]
[348124773,1736340645846,-500.0,9.999e-05,2]
[348124775,1736340645858,-2864.12,9.999e-05,2]
[348124778,1736340645867,-500.0,9.999e-05,2]
[348124781,1736340645877,-740.18,9.999e-05,2]
[348124784,1736340645887,-500.0,9.999e-05,2]
[348124787,1736340645896,-2528.86,9.999e-05,2]
[348124789,1736340645906,-500.0,9.999e-05,2]
[348124791,1736340645915,-1084.12,9.999e-05,2]
[348124793,1736340645925,-500.0,9.999e-05,2]
[348124795,1736340645934,-1103.57,9.999e-05,2]
[348124797,1736340645943,-939.49,9.999e-05,2]
[348124799,1736340645952,-671.99,9.999e-05,2]
[348124800,1736340645961,-939.49,9.999e-05,2]
[348124801,1736340645970,-194599.08895513,0.0001,2]
[348124802,1736340646027,-698.183323,0.0001,2]
[348124803,1736340646038,-548.35349623,0.0001,2]
[348124805,1736340646561,-546.47,9.998e-05,2]
[348124806,1736340646570,-4872.98,0.0001,2]
[348124807,1736340646581,-34572.18501297,0.0001,2]
[348124808,1736340646596,-1610.45982346,0.0001,2]
[348124809,1736340646612,-371.545834,0.0001,2]
[348124810,1736340646625,-446.91429972,0.0001,2]
[348124811,1736340646639,-3882.63791855,0.0001,2]
[348124812,1736340646657,-891.97402817,0.0001,2]
[348124813,1736340647087,-24313.59794781,0.0001,2]
[348124814,1736340647193,-26529.64967987,0.0001,2]
[348124815,1736340932926,309.0,0.0001,30]
[348124816,1736340933262,309.0,0.00010632,30]
[348124817,1736340933594,309.0,0.00011263,30]
[348124818,1736340933982,309.0,0.00011895,30]
[348124820,1736341208823,165.7636049,0.0001,30]
[348124821,1736341231707,449.0,0.0001,30]
[348124822,1736341232032,449.0,0.00010632,30]
[348124823,1736341232394,449.0,0.00011263,30]
[348124824,1736341232937,449.0,0.00011895,30]
[348124830,1736341509155,168.0,0.0001,30]
[348124854,1736341808146,359.0,0.0001,30]
[348124855,1736341808521,359.0,0.00010632,30]
[348124856,1736341808849,359.0,0.00011263,30]
[348124857,1736341809518,359.0,0.00011895,30]
[348124858,1736341832143,-566.52,8.219e-05,2]
[348124859,1736341832154,-177.87845729,8.219e-05,2]
[348124860,1736341832194,-322.12154271,8.219e-05,2]
[348124861,1736341832203,-1000.0,8.922e-05,2]
[348124862,1736341832213,-341.8,8.951e-05,2]
[348124863,1736341832222,-1008.3536941,8.994e-05,2]
[348124864,1736341832232,-250.0,8.994e-05,2]
[348124865,1736341832243,-150.44,9.005e-05,2]
[348124866,1736341832252,-150.0,9.148e-05,2]
[348124867,1736341832262,-150.0,9.148e-05,2]
[348124868,1736341832271,-150.0,9.569e-05,2]
[348124869,1736341832280,-156.422,9.76e-05,2]
[348124870,1736341832289,-150.0,9.798e-05,2]
[348124871,1736341832298,-300.0,9.798e-05,2]
[348124872,1736341832307,-500.0,9.799e-05,2]
[348124873,1736341832317,-500.0,9.799e-05,2]
[348124874,1736341832327,-500.0,9.799e-05,2]
[348124875,1736341832337,-539.16,9.799e-05,2]
[348124876,1736341832346,-500.0,9.799e-05,2]
[348124877,1736341832356,-500.0,9.799e-05,2]
[348124878,1736341832365,-500.0,9.799e-05,2]
[348124879,1736341832374,-500.0,9.799e-05,2]
[348124880,1736341832384,-751.74,9.799e-05,2]
[348124881,1736341832393,-500.0,9.799e-05,2]
[348124882,1736341832402,-535.41,9.799e-05,2]
[348124883,1736341832412,-500.0,9.799e-05,2]
[348124884,1736341832422,-545.45,9.799e-05,2]
[348124885,1736341832431,-631.35,9.799e-05,2]
[348124886,1736341832440,-500.0,9.799e-05,2]
[348124887,1736341832450,-500.0,9.799e-05,2]
[348124888,1736341832459,-6.83592414,9.799e-05,2]
[348124889,1736341832471,-493.16407586,9.799e-05,2]
[348124890,1736341832481,-500.0,9.799e-05,2]
[348124891,1736341832491,-312.32731923,9.799e-05,2]
[348124892,1736341832502,-187.67268077,9.799e-05,2]
[348124893,1736341832512,-500.0,9.799e-05,2]
[348124894,1736341832521,-500.0,9.799e-05,2]
[348124895,1736341832531,-72.32731918,9.799e-05,2]
[348124896,1736341832542,-427.67268082,9.799e-05,2]
[348124897,1736341832552,-500.0,9.799e-05,2]
[348124898,1736341832561,-500.0,9.799e-05,2]
[348124899,1736341832571,-239.08413532,9.799e-05,2]
[348124900,1736341832582,-262.46788107,9.799e-05,2]
[348124901,1736341832591,-500.0,9.799e-05,2]
[348124902,1736341832601,-500.0,9.799e-05,2]
[348124903,1736341832611,-1344.31,9.799e-05,2]
[348124905,1736341832620,-210.06612822,9.799e-05,2]
[348124907,1736341832631,-403.67387178,9.799e-05,2]
[348124909,1736341832640,-186.01649338,9.799e-05,2]
[348124911,1736341832650,-500.0,9.799e-05,2]
[348124913,1736341832659,-500.0,9.799e-05,2]
[348124915,1736341832669,-500.0,9.799e-05,2]
[348124917,1736341832678,-500.0,9.799e-05,2]
[348124919,1736341832687,-210.79,9.799e-05,2]
[348124921,1736341832697,-500.0,9.799e-05,2]
[348124922,1736341832707,-645.67,9.799e-05,2]
[348124924,1736341832717,-500.0,9.799e-05,2]
[348124927,1736341832727,-1328.22,9.799e-05,2]
[348124929,1736341832737,-500.0,9.799e-05,2]
[348124931,1736341832747,-505.46005254,9.799e-05,2]
[348124934,1736341832756,-292.27,9.799e-05,2]
[348124937,1736341832766,-505.03683341,9.799e-05,2]
[348124941,1736341832777,-500.0,9.799e-05,2]
[348124945,1736341832787,-503.60305246,9.799e-05,2]
[348124949,1736341832797,-500.0,9.799e-05,2]
[348124953,1736341832806,-500.0,9.799e-05,2]
[348124957,1736341832816,-443.62633174,9.799e-05,2]
[348124959,1736341832825,-500.0,9.799e-05,2]
[348124961,1736341832835,-1899.78,9.799e-05,2]
[348124963,1736341832844,-500.0,9.799e-05,2]
[348124965,1736341832854,-346.36090801,9.799e-05,2]
[348124967,1736341832863,-500.0,9.799e-05,2]
[348124969,1736341832873,-500.0,9.799e-05,2]
[348124971,1736341832882,-500.0,9.799e-05,2]
[348124973,1736341832891,-500.0,9.799e-05,2]
[348124975,1736341832901,-1247.48,9.799e-05,2]
[348124977,1736341832911,-500.0,9.799e-05,2]
[348124979,1736341832920,-500.0,9.799e-05,2]
[348124981,1736341832929,-526.08623902,9.799e-05,2]
[348124983,1736341832939,-407.043993,9.799e-05,2]
[348124985,1736341832948,-500.0,9.799e-05,2]
[348124987,1736341832957,-500.0,9.799e-05,2]
[348124989,1736341832967,-500.0,9.799e-05,2]
[348124991,1736341832978,-500.0,9.799e-05,2]
[348124993,1736341832989,-919.5,9.799e-05,2]
[348124995,1736341832998,-502.81,9.799e-05,2]
[348124997,1736341833007,-347.048909,9.799e-05,2]
[348124999,1736341833016,-500.0,9.799e-05,2]
[348125001,1736341833026,-500.0,9.799e-05,2]
[348125002,1736341833035,-159.337972,9.799e-05,2]
[348125005,1736341833045,-500.0,9.799e-05,2]
[348125006,1736341833056,-156.313772,9.799e-05,2]
[348125008,1736341833066,-500.0,9.799e-05,2]
[348125010,1736341833076,-500.0,9.799e-05,2]
[348125012,1736341833085,-500.0,9.799e-05,2]
[348125014,1736341833096,-500.0,9.799e-05,2]
[348125016,1736341833105,-336.78,9.799e-05,2]
[348125018,1736341833116,-500.0,9.799e-05,2]
[348125020,1736341833126,-1779.59,9.799e-05,2]
[348125022,1736341833136,-517.66,9.799e-05,2]
[348125024,1736341833146,-500.0,9.799e-05,2]
[348125026,1736341833156,-3889.78,9.799e-05,2]
[348125028,1736341833165,-500.0,9.799e-05,2]
[348125030,1736341833175,-1816.0,9.799e-05,2]
[348125032,1736341833185,-4656.7,9.799e-05,2]
[348125034,1736341833195,-500.0,9.799e-05,2]
[348125036,1736341833204,-500.0,9.799e-05,2]
[348125038,1736341833214,-500.0,9.799e-05,2]
[348125040,1736341833224,-725.45,9.799e-05,2]
[348125042,1736341833235,-500.0,9.799e-05,2]
[348125044,1736341833245,-806.74,9.799e-05,2]
[348125046,1736341833256,-1047.41,9.799e-05,2]
[348125048,1736341833266,-1391.07,9.799e-05,2]
[348125050,1736341833278,-1390.32,9.799e-05,2]
[348125052,1736341833288,-500.0,9.799e-05,2]
[348125054,1736341833298,-500.0,9.799e-05,2]
[348125056,1736341833308,-500.0,9.799e-05,2]
[348125058,1736341833318,-500.0,9.799e-05,2]
[348125060,1736341833328,-500.0,9.799e-05,2]
[348125062,1736341833338,-2985.46,9.799e-05,2]
[348125064,1736341833348,-500.0,9.799e-05,2]
[348125066,1736341833358,-343.57080778,9.799e-05,2]
[348125068,1736341833367,-1566.86,9.799e-05,2]
[348125070,1736341833376,-2790.12,9.799e-05,2]
[348125072,1736341833386,-500.0,9.799e-05,2]
[348125074,1736341833396,-789.28,9.799e-05,2]
[348125076,1736341833405,-701.16,9.799e-05,2]
[348125078,1736341833415,-500.0,9.799e-05,2]
[348125080,1736341833424,-500.0,9.799e-05,2]
[348125082,1736341833433,-1117.33,9.799e-05,2]
[348125084,1736341833443,-533.62,9.799e-05,2]
[348125086,1736341833452,-500.0,9.799e-05,2]
[348125088,1736341833462,-504.86,9.799e-05,2]
[348125090,1736341833472,-2210.85,9.799e-05,2]
[348125092,1736341833482,-1971.1,9.799e-05,2]
[348125094,1736341833493,-1265.83,9.799e-05,2]
[348125096,1736341833503,-500.0,9.799e-05,2]
[348125098,1736341833512,-500.0,9.799e-05,2]
[348125100,1736341833522,-2670.36,9.799e-05,2]
[348125102,1736341833531,-500.0,9.799e-05,2]
[348125104,1736341833541,-500.0,9.799e-05,2]
[348125106,1736341833551,-1097.35,9.799e-05,2]
[348125108,1736341833561,-892.54,9.799e-05,2]
[348125110,1736341833571,-500.0,9.799e-05,2]
[348125112,1736341833581,-500.0,9.799e-05,2]
[348125114,1736341833591,-500.0,9.799e-05,2]
[348125116,1736341833600,-1383.02,9.799e-05,2]
[348125118,1736341833610,-500.0,9.799e-05,2]
[348125120,1736341833621,-500.0,9.799e-05,2]
[348125122,1736341833630,-500.0,9.799e-05,2]
[348125124,1736341833640,-513.61,9.799e-05,2]
[348125145,1736341833650,-245003.62143987,9.8e-05,2]
[348125146,1736341833890,-69480.0017378,9.8e-05,2]
[348125147,1736341833903,-43020.59577307,9.8e-05,2]
[348125148,1736341833912,-150.0,9.872e-05,2]
[348125149,1736341833921,-507.73,9.897e-05,2]
[348125150,1736341833931,-499.85,9.897e-05,2]
[348125151,1736341833940,-496.31,9.897e-05,2]
[348125152,1736341833950,-492.26,9.897e-05,2]
[348125153,1736341833958,-503.79,9.897e-05,2]
[348125154,1736341833967,-503.35,9.897e-05,2]
[348125155,1736341833976,-504.52,9.897e-05,2]
[348125157,1736341833986,-499.89,9.897e-05,2]
[348125159,1736341833997,-508.5,9.897e-05,2]
[348125161,1736341834007,-493.96,9.897e-05,2]
[348125163,1736341834016,-508.12,9.897e-05,2]
[348125165,1736341834026,-509.98,9.897e-05,2]
[348125167,1736341834036,-493.27,9.897e-05,2]
[348125169,1736341834046,-498.68,9.897e-05,2]
[348125171,1736341834055,-509.37,9.897e-05,2]
[348125173,1736341834065,-497.4,9.897e-05,2]
[348125175,1736341834075,-497.33,9.897e-05,2]
[348125177,1736341834085,-508.05,9.897e-05,2]
[348125179,1736341834096,-490.88,9.897e-05,2]
[348125181,1736341834105,-493.96,9.898e-05,2]
[348125183,1736341834114,-1765.989,9.898e-05,2]
[348125185,1736341834123,-152.604,9.898e-05,2]
[348125187,1736341834133,-501.23,9.898e-05,2]
[348125189,1736341834142,-11852.0371,9.898e-05,2]
[348125191,1736341834151,-506.02,9.898e-05,2]
[348125193,1736341834162,-505.5,9.898e-05,2]
[348125195,1736341834171,-506.88,9.898e-05,2]
[348125197,1736341834182,-499.48,9.898e-05,2]
[348125199,1736341834193,-2903.3713,9.899e-05,2]
[348125200,1736341834203,-4842.7218,9.899e-05,2]
[348125202,1736341834213,-1320.0593,9.899e-05,2]
[348125204,1736341834222,-2024.53,9.9e-05,2]
[348125206,1736341834232,-201.00890047,9.91e-05,2]
[348125208,1736341834242,-201.00890047,9.965e-05,2]
[348125210,1736341834252,-500.0,9.973e-05,2]
[348125211,1736341834261,-500.0,9.973e-05,2]
[348125213,1736341834270,-507.8,9.997e-05,2]
[348125215,1736341834281,-500.0,9.997e-05,2]
[348125217,1736341834290,-500.0,9.997e-05,2]
[348125219,1736341834299,-500.0,9.997e-05,2]
[348125221,1736341834309,-500.0,9.997e-05,2]
[348125223,1736341834320,-500.0,9.997e-05,2]
[348125225,1736341834329,-500.0,9.997e-05,2]
[348125227,1736341834340,-500.0,9.997e-05,2]
[348125229,1736341834351,-500.0,9.997e-05,2]
[348125231,1736341834361,-500.0,9.997e-05,2]
[348125233,1736341834373,-500.0,9.997e-05,2]
[348125235,1736341834382,-500.0,9.997e-05,2]
[348125237,1736341834391,-500.0,9.997e-05,2]
[348125239,1736341834401,-500.0,9.997e-05,2]
[348125241,1736341834411,-500.0,9.997e-05,2]
[348125243,1736341834421,-500.0,9.997e-05,2]